[Event "Titled Tuesday Blitz November 30 2021"]
[White "Pranav, V"]
[Black "Peralta, Eduardo"]
[WhiteFideId "25060783"]
[BlackFideId "3700062"]
[WhiteElo "2351"]
[BlackElo "2159"]
[Result "1-0"]
[Round "04"]
[TimeControl "180+1"]
[Date "2021.11.30"]
[WhiteClock "0:00:23"]
[BlackClock "0:00:01"]

1. e4 {[%clk 0:03:00]}  c5 {[%clk 0:02:59]} 2. Nf3 {[%clk 0:03:01]}  Nc6 {[%clk 0:03:00]} 3. Bb5 {[%clk 0:03:01]}  g6 {[%clk 0:03:00]} 4. O-O {[%clk 0:03:01]}  Bg7 {[%clk 0:03:00]} 5. c3 {[%clk 0:03:01]}  Nf6 {[%clk 0:02:59]} 6. Qa4 {[%clk 0:03:01]}  O-O {[%clk 0:02:55]} 7. d4 {[%clk 0:03:00]}  cxd4 {[%clk 0:02:40]} 8. cxd4 {[%clk 0:03:01]}  d5 {[%clk 0:02:34]} 9. e5 {[%clk 0:03:00]}  Ne4 {[%clk 0:02:31]} 10. Bxc6 {[%clk 0:03:00]}  bxc6 {[%clk 0:02:28]} 11. Qxc6 {[%clk 0:03:01]}  Bg4 {[%clk 0:02:27]} 12. Nbd2 {[%clk 0:03:00]}  Rc8 {[%clk 0:02:24]} 13. Qa6 {[%clk 0:02:59]}  Nxd2 {[%clk 0:02:21]} 14. Nxd2 {[%clk 0:02:41]}  f6 {[%clk 0:02:17]} 15. h3 {[%clk 0:02:33]}  Bf5 {[%clk 0:02:12]} 16. Nf3 {[%clk 0:02:27]}  Be4 {[%clk 0:02:12]} 17. Nd2 {[%clk 0:01:45]}  Bf5 {[%clk 0:02:10]} 18. Re1 {[%clk 0:01:43]}  fxe5 {[%clk 0:02:06]} 19. dxe5 {[%clk 0:01:44]}  Rc7 {[%clk 0:02:01]} 20. Nb3 {[%clk 0:01:43]}  d4 {[%clk 0:01:59]} 21. Bg5 {[%clk 0:01:39]}  h6 {[%clk 0:01:55]} 22. Bd2 {[%clk 0:01:37]}  Qd5 {[%clk 0:01:48]} 23. Rac1 {[%clk 0:01:29]}  Rfc8 {[%clk 0:01:48]} 24. Rxc7 {[%clk 0:01:23]}  Rxc7 {[%clk 0:01:48]} 25. Qa4 {[%clk 0:01:24]}  Bc2 {[%clk 0:01:28]} 26. Qb4 {[%clk 0:01:12]}  d3 {[%clk 0:01:26]} 27. Qb8+ {[%clk 0:01:11]}  Kh7 {[%clk 0:01:20]} 28. Qxc7 {[%clk 0:01:11]}  Qf7 {[%clk 0:01:19]} 29. Nd4 {[%clk 0:01:07]}  Ba4 {[%clk 0:01:15]} 30. Qc3 {[%clk 0:01:02]}  Qd5 {[%clk 0:01:08]} 31. Qxd3 {[%clk 0:01:00]}  Bc6 {[%clk 0:01:08]} 32. f3 {[%clk 0:00:53]}  Be8 {[%clk 0:01:07]} 33. Bc3 {[%clk 0:00:49]}  Qxa2 {[%clk 0:01:07]} 34. Ne6 {[%clk 0:00:47]}  Qxe6 {[%clk 0:01:03]} 35. Qe3 {[%clk 0:00:44]}  a6 {[%clk 0:01:01]} 36. Qc5 {[%clk 0:00:43]}  Bb5 {[%clk 0:00:59]} 37. Rd1 {[%clk 0:00:41]}  g5 {[%clk 0:00:54]} 38. Rd8 {[%clk 0:00:40]}  h5 {[%clk 0:00:51]} 39. Qe3 {[%clk 0:00:39]}  Qf5 {[%clk 0:00:47]} 40. Qe4 {[%clk 0:00:39]}  Qxe4 {[%clk 0:00:46]} 41. fxe4 {[%clk 0:00:40]}  Kg6 {[%clk 0:00:45]} 42. Rb8 {[%clk 0:00:36]}  Bd3 {[%clk 0:00:41]} 43. Rb6+ {[%clk 0:00:36]}  Kf7 {[%clk 0:00:37]} 44. e6+ {[%clk 0:00:36]}  Kg6 {[%clk 0:00:36]} 45. Bxg7 {[%clk 0:00:33]}  Kxg7 {[%clk 0:00:37]} 46. e5 {[%clk 0:00:32]}  Kg6 {[%clk 0:00:36]} 47. Kf2 {[%clk 0:00:31]}  Kf5 {[%clk 0:00:32]} 48. Ke3 {[%clk 0:00:30]}  Bf1 {[%clk 0:00:31]} 49. g4+ {[%clk 0:00:28]}  hxg4 {[%clk 0:00:28]} 50. hxg4+ {[%clk 0:00:29]}  Kxe5 {[%clk 0:00:20]} 51. Rb8 {[%clk 0:00:29]}  Bc4 {[%clk 0:00:14]} 52. Rg8 {[%clk 0:00:25]}  Kf6 {[%clk 0:00:14]} 53. Rf8+ {[%clk 0:00:25]}  Ke5 {[%clk 0:00:13]} 54. Rf5+ {[%clk 0:00:25]}  Kxe6 {[%clk 0:00:12]} 55. Rxg5 {[%clk 0:00:26]}  Kf7 {[%clk 0:00:12]} 56. Rc5 {[%clk 0:00:25]}  Bb5 {[%clk 0:00:08]} 57. Kf4 {[%clk 0:00:26]}  Kf6 {[%clk 0:00:07]} 58. Rf5+ {[%clk 0:00:24]}  Kg6 {[%clk 0:00:07]} 59. Ke5 {[%clk 0:00:24]}  Bd7 {[%clk 0:00:06]} 60. Rf4 {[%clk 0:00:24]}  Kg5 {[%clk 0:00:05]} 61. Rf7 {[%clk 0:00:24]}  Bxg4 {[%clk 0:00:04]} 62. Rxe7 {[%clk 0:00:24]}  Be2 {[%clk 0:00:03]} 63. Rg7+ {[%clk 0:00:24]}  Kh6 {[%clk 0:00:03]} 64. Rg2 {[%clk 0:00:25]}  Bc4 {[%clk 0:00:02]} 65. Kf5 {[%clk 0:00:20]}  Bd3+ {[%clk 0:00:01]} 66. Kf6 {[%clk 0:00:20]}  Kh7 {[%clk 0:00:02]} 67. Rg7+ {[%clk 0:00:18]}  Kh8 {[%clk 0:00:02]} 68. Rg3 {[%clk 0:00:18]}  Bc4 {[%clk 0:00:02]} 69. Rg4 {[%clk 0:00:17]}  Bd5 {[%clk 0:00:02]} 70. Ke5 {[%clk 0:00:17]}  Bc6 {[%clk 0:00:01]} 71. Rg3 {[%clk 0:00:18]}  Bb5 {[%clk 0:00:02]} 72. Kd6 {[%clk 0:00:19]}  Kh7 {[%clk 0:00:02]} 73. Kc5 {[%clk 0:00:20]}  Kh6 {[%clk 0:00:02]} 74. Kb6 {[%clk 0:00:21]}  Kh5 {[%clk 0:00:02]} 75. Ra3 {[%clk 0:00:21]}  Bc4 {[%clk 0:00:03]} 76. Rxa6 {[%clk 0:00:22]}  Kg6 {[%clk 0:00:03]} 77. Ra1 {[%clk 0:00:20]}  Kf5 {[%clk 0:00:03]} 78. Re1 {[%clk 0:00:21]}  Kf4 {[%clk 0:00:02]} 79. b4 {[%clk 0:00:22]}  Kf3 {[%clk 0:00:02]} 80. Kc5 {[%clk 0:00:23]}  Bd3 {[%clk 0:00:01]} 81. b5 {[%clk 0:00:21]}  Kf2 {[%clk 0:00:01]} 82. Re7 {[%clk 0:00:22]}  Kf3 {[%clk 0:00:01]} 83. b6 {[%clk 0:00:23]} 1-0


[Site "https://www.chess.com"]

[Event "Titled Tuesday Blitz November 30 2021"]
[White "Priyanka Nutakki"]
[Black "Preotu, Razvan"]
[WhiteFideId "25049615"]
[BlackFideId "2613280"]
[WhiteElo "1916"]
[BlackElo "2407"]
[Result "0-1"]
[Round "04"]
[TimeControl "180+1"]
[Date "2021.11.30"]
[WhiteClock "0:00:07"]
[BlackClock "0:00:38"]

1. d4 {[%clk 0:03:00]}  Nf6 {[%clk 0:02:59]} 2. c4 {[%clk 0:03:00]}  g6 {[%clk 0:02:59]} 3. Nc3 {[%clk 0:03:00]}  d5 {[%clk 0:02:59]} 4. cxd5 {[%clk 0:02:58]}  Nxd5 {[%clk 0:03:00]} 5. e3 {[%clk 0:02:56]}  Bg7 {[%clk 0:02:59]} 6. f4 {[%clk 0:02:57]}  c5 {[%clk 0:02:54]} 7. Nf3 {[%clk 0:02:57]}  cxd4 {[%clk 0:02:52]} 8. Nxd4 {[%clk 0:02:57]}  O-O {[%clk 0:02:39]} 9. Be2 {[%clk 0:02:52]}  Nxf4 {[%clk 0:02:35]} 10. Bf3 {[%clk 0:02:41]}  e5 {[%clk 0:02:28]} 11. Ndb5 {[%clk 0:02:31]}  Nd3+ {[%clk 0:02:28]} 12. Ke2 {[%clk 0:02:30]}  Nxc1+ {[%clk 0:01:36]} 13. Rxc1 {[%clk 0:02:30]}  Qb6 {[%clk 0:01:29]} 14. Qd6 {[%clk 0:01:59]}  Nc6 {[%clk 0:01:27]} 15. a4 {[%clk 0:01:32]}  Be6 {[%clk 0:01:18]} 16. Qc7 {[%clk 0:01:08]}  Qa6 {[%clk 0:01:07]} 17. Rhd1 {[%clk 0:00:46]}  Rac8 {[%clk 0:00:52]} 18. Qd6 {[%clk 0:00:45]}  Rfd8 {[%clk 0:00:52]} 19. Qa3 {[%clk 0:00:41]}  Bf8 {[%clk 0:00:52]} 20. Qa1 {[%clk 0:00:37]}  Nb4 {[%clk 0:00:43]} 21. Rxd8 {[%clk 0:00:21]}  Rxd8 {[%clk 0:00:44]} 22. Rd1 {[%clk 0:00:21]}  Bc4+ {[%clk 0:00:43]} 23. Kf2 {[%clk 0:00:20]}  Nd3+ {[%clk 0:00:41]} 24. Kg1 {[%clk 0:00:15]}  Qb6 {[%clk 0:00:39]} 25. Nd5 {[%clk 0:00:07]}  Rxd5 {[%clk 0:00:38]} 0-1


[Site "https://www.chess.com"]

[Event "Titled Tuesday Blitz November 30 2021"]
[White "Rengifo Blancas, Renzo Jhonathan"]
[Black "Golubka, Petro"]
[WhiteFideId "3807185"]
[BlackFideId "14114224"]
[WhiteElo "2058"]
[BlackElo "2392"]
[Result "0-1"]
[Round "04"]
[TimeControl "180+1"]
[Date "2021.11.30"]
[WhiteClock "0:00:10"]
[BlackClock "0:00:27"]

1. Nf3 {[%clk 0:03:00]}  Nf6 {[%clk 0:02:58]} 2. c4 {[%clk 0:03:00]}  e6 {[%clk 0:02:58]} 3. d4 {[%clk 0:03:00]}  b6 {[%clk 0:02:57]} 4. Nc3 {[%clk 0:02:59]}  Bb7 {[%clk 0:02:57]} 5. a3 {[%clk 0:02:58]}  Ne4 {[%clk 0:02:56]} 6. Qc2 {[%clk 0:02:41]}  Nxc3 {[%clk 0:02:55]} 7. Qxc3 {[%clk 0:02:41]}  Be7 {[%clk 0:02:54]} 8. e3 {[%clk 0:02:27]}  O-O {[%clk 0:02:55]} 9. Bd3 {[%clk 0:02:27]}  c5 {[%clk 0:02:52]} 10. Qc2 {[%clk 0:02:26]}  f5 {[%clk 0:02:51]} 11. d5 {[%clk 0:02:25]}  Bf6 {[%clk 0:02:43]} 12. Bd2 {[%clk 0:02:19]}  g6 {[%clk 0:02:37]} 13. e4 {[%clk 0:02:06]}  fxe4 {[%clk 0:02:35]} 14. Bxe4 {[%clk 0:02:06]}  exd5 {[%clk 0:02:36]} 15. cxd5 {[%clk 0:01:58]}  Qe7 {[%clk 0:02:31]} 16. O-O-O {[%clk 0:01:54]}  Qf7 {[%clk 0:02:31]} 17. h4 {[%clk 0:01:32]}  d6 {[%clk 0:02:28]} 18. h5 {[%clk 0:01:27]}  gxh5 {[%clk 0:02:27]} 19. Bg5 {[%clk 0:01:07]}  Nd7 {[%clk 0:02:25]} 20. Bxf6 {[%clk 0:00:57]}  Nxf6 {[%clk 0:02:26]} 21. Ng5 {[%clk 0:00:57]}  Qg7 {[%clk 0:02:04]} 22. Ne6 {[%clk 0:00:55]}  Qh6+ {[%clk 0:02:03]} 23. Kb1 {[%clk 0:00:54]}  Rae8 {[%clk 0:02:01]} 24. Nxf8 {[%clk 0:00:49]}  Rxe4 {[%clk 0:01:59]} 25. f3 {[%clk 0:00:46]}  Re5 {[%clk 0:01:50]} 26. Ne6 {[%clk 0:00:42]}  Nxd5 {[%clk 0:01:43]} 27. Nd8 {[%clk 0:00:36]}  Ne3 {[%clk 0:01:42]} 28. Qb3+ {[%clk 0:00:34]}  c4 {[%clk 0:01:36]} 29. Qa4 {[%clk 0:00:32]}  Qg6+ {[%clk 0:01:33]} 30. Ka2 {[%clk 0:00:30]}  c3 {[%clk 0:01:21]} 31. Nxb7 {[%clk 0:00:26]}  Nxd1 {[%clk 0:01:19]} 32. Rxd1 {[%clk 0:00:24]}  cxb2 {[%clk 0:01:15]} 33. Qc4+ {[%clk 0:00:23]}  Kg7 {[%clk 0:01:13]} 34. Qc7+ {[%clk 0:00:17]}  Kh8 {[%clk 0:01:07]} 35. Qb8+ {[%clk 0:00:17]}  Re8 {[%clk 0:01:04]} 36. Qxd6 {[%clk 0:00:17]}  b1=Q+ {[%clk 0:00:43]} 37. Rxb1 {[%clk 0:00:16]}  Re2+ {[%clk 0:00:31]} 38. Ka1 {[%clk 0:00:12]}  Qg7+ {[%clk 0:00:28]} 39. Rb2 {[%clk 0:00:10]}  Qxb2# {[%clk 0:00:27]} 0-1


[Site "https://www.chess.com"]

[Event "Titled Tuesday Blitz November 30 2021"]
[White "Rustemov, Alexander"]
[Black "Zhigalko, Sergei"]
[WhiteFideId "4119002"]
[BlackFideId "13502956"]
[WhiteElo "2789"]
[BlackElo "2662"]
[Result "1/2-1/2"]
[Round "04"]
[TimeControl "180+1"]
[Date "2021.11.30"]
[WhiteClock "0:00:35"]
[BlackClock "0:00:41"]

1. Nf3 {[%clk 0:02:59]}  d5 {[%clk 0:03:00]} 2. d4 {[%clk 0:02:58]}  e6 {[%clk 0:03:00]} 3. c4 {[%clk 0:02:58]}  c6 {[%clk 0:03:00]} 4. Qc2 {[%clk 0:02:54]}  dxc4 {[%clk 0:03:00]} 5. Qxc4 {[%clk 0:02:54]}  Nf6 {[%clk 0:03:00]} 6. Bg5 {[%clk 0:02:49]}  b5 {[%clk 0:02:58]} 7. Qb3 {[%clk 0:02:45]}  Bb7 {[%clk 0:02:45]} 8. g3 {[%clk 0:02:42]}  Nbd7 {[%clk 0:02:38]} 9. Bg2 {[%clk 0:02:42]}  Be7 {[%clk 0:02:34]} 10. O-O {[%clk 0:02:41]}  O-O {[%clk 0:02:34]} 11. Rd1 {[%clk 0:02:30]}  Qb6 {[%clk 0:02:20]} 12. Nc3 {[%clk 0:02:19]}  Rfd8 {[%clk 0:02:16]} 13. Rac1 {[%clk 0:02:15]}  Rac8 {[%clk 0:02:13]} 14. Ne5 {[%clk 0:02:08]}  Nxe5 {[%clk 0:01:22]} 15. dxe5 {[%clk 0:01:46]}  Rxd1+ {[%clk 0:01:23]} 16. Nxd1 {[%clk 0:01:02]}  Nd5 {[%clk 0:01:23]} 17. Bxe7 {[%clk 0:01:01]}  Nxe7 {[%clk 0:01:23]} 18. Qe3 {[%clk 0:00:57]}  c5 {[%clk 0:00:48]} 19. Bxb7 {[%clk 0:00:55]}  Qxb7 {[%clk 0:00:49]} 20. Rxc5 {[%clk 0:00:54]}  Rd8 {[%clk 0:00:50]} 21. Qc1 {[%clk 0:00:45]}  h6 {[%clk 0:00:41]} 22. Ne3 {[%clk 0:00:35]} 1/2-1/2


[Site "https://www.chess.com"]

[Event "Titled Tuesday Blitz November 30 2021"]
[White "ValeriyGrinev"]
[Black "Bologan, Victor"]
[BlackFideId "13900048"]
[WhiteElo "2648"]
[BlackElo "2472"]
[Result "0-1"]
[Round "04"]
[TimeControl "180+1"]
[Date "2021.11.30"]
[WhiteClock "0:00:05"]
[BlackClock "0:00:13"]

1. c4 {[%clk 0:03:00]}  e5 {[%clk 0:02:01]} 2. g3 {[%clk 0:02:59]}  Nf6 {[%clk 0:02:00]} 3. Bg2 {[%clk 0:02:59]}  h6 {[%clk 0:01:59]} 4. d3 {[%clk 0:02:56]}  Bb4+ {[%clk 0:01:57]} 5. Bd2 {[%clk 0:02:51]}  c5 {[%clk 0:01:54]} 6. Nc3 {[%clk 0:02:46]}  O-O {[%clk 0:01:51]} 7. Nf3 {[%clk 0:02:45]}  Nc6 {[%clk 0:01:51]} 8. O-O {[%clk 0:02:44]}  Bxc3 {[%clk 0:01:47]} 9. Bxc3 {[%clk 0:02:43]}  Re8 {[%clk 0:01:46]} 10. Qb3 {[%clk 0:02:22]}  d6 {[%clk 0:01:39]} 11. Nd2 {[%clk 0:02:21]}  Nd4 {[%clk 0:01:30]} 12. Qd1 {[%clk 0:02:09]}  Bg4 {[%clk 0:01:27]} 13. f3 {[%clk 0:02:09]}  Be6 {[%clk 0:01:14]} 14. e3 {[%clk 0:02:08]}  Nc6 {[%clk 0:01:14]} 15. f4 {[%clk 0:02:07]}  Qd7 {[%clk 0:00:56]} 16. Ne4 {[%clk 0:01:18]}  Nxe4 {[%clk 0:00:53]} 17. Bxe4 {[%clk 0:01:19]}  d5 {[%clk 0:00:48]} 18. cxd5 {[%clk 0:00:40]}  Bxd5 {[%clk 0:00:48]} 19. Bxd5 {[%clk 0:00:32]}  Qxd5 {[%clk 0:00:47]} 20. Qc2 {[%clk 0:00:20]}  Rad8 {[%clk 0:00:43]} 21. Rad1 {[%clk 0:00:20]}  exf4 {[%clk 0:00:42]} 22. exf4 {[%clk 0:00:19]}  Re3 {[%clk 0:00:42]} 23. Rfe1 {[%clk 0:00:16]}  Rxe1+ {[%clk 0:00:36]} 24. Rxe1 {[%clk 0:00:16]}  Qxd3 {[%clk 0:00:33]} 25. Re8+ {[%clk 0:00:16]}  Kh7 {[%clk 0:00:32]} 26. Qxd3+ {[%clk 0:00:17]}  Rxd3 {[%clk 0:00:32]} 27. Kf2 {[%clk 0:00:17]}  Rd7 {[%clk 0:00:31]} 28. b3 {[%clk 0:00:16]}  f6 {[%clk 0:00:25]} 29. f5 {[%clk 0:00:15]}  h5 {[%clk 0:00:25]} 30. h3 {[%clk 0:00:15]}  Ne7 {[%clk 0:00:18]} 31. g4 {[%clk 0:00:14]}  Nd5 {[%clk 0:00:18]} 32. Bd2 {[%clk 0:00:14]}  Nc7 {[%clk 0:00:18]} 33. Re2 {[%clk 0:00:11]}  Rd3 {[%clk 0:00:16]} 34. Kg2 {[%clk 0:00:10]}  Nd5 {[%clk 0:00:15]} 35. Bc1 {[%clk 0:00:09]}  hxg4 {[%clk 0:00:14]} 36. hxg4 {[%clk 0:00:09]}  Rc3 {[%clk 0:00:12]} 37. Bb2 {[%clk 0:00:08]}  Nf4+ {[%clk 0:00:12]} 38. Kf2 {[%clk 0:00:05]}  Nxe2 {[%clk 0:00:13]} 0-1


[Site "https://www.chess.com"]

[Event "Titled Tuesday Blitz November 30 2021"]
[White "Wagner, Dennis"]
[Black "Yilmaz, Mustafa"]
[WhiteFideId "24650684"]
[BlackFideId "6302718"]
[WhiteElo "2355"]
[BlackElo "2518"]
[Result "0-1"]
[Round "04"]
[TimeControl "180+1"]
[Date "2021.11.30"]
[WhiteClock "0:00:05"]
[BlackClock "0:01:03"]

1. e4 {[%clk 0:03:00]}  e5 {[%clk 0:02:57]} 2. Nf3 {[%clk 0:03:00]}  Nc6 {[%clk 0:02:58]} 3. Bb5 {[%clk 0:03:00]}  a6 {[%clk 0:02:58]} 4. Ba4 {[%clk 0:03:00]}  Nf6 {[%clk 0:02:58]} 5. O-O {[%clk 0:03:01]}  Nxe4 {[%clk 0:02:57]} 6. d4 {[%clk 0:03:00]}  b5 {[%clk 0:02:58]} 7. Bb3 {[%clk 0:03:01]}  d5 {[%clk 0:02:58]} 8. dxe5 {[%clk 0:03:01]}  Be6 {[%clk 0:02:59]} 9. Be3 {[%clk 0:03:00]}  Be7 {[%clk 0:02:58]} 10. c3 {[%clk 0:02:57]}  O-O {[%clk 0:02:55]} 11. Nbd2 {[%clk 0:02:57]}  Nxd2 {[%clk 0:02:55]} 12. Qxd2 {[%clk 0:02:56]}  Na5 {[%clk 0:02:56]} 13. Rfe1 {[%clk 0:02:31]}  Nc4 {[%clk 0:02:50]} 14. Bxc4 {[%clk 0:02:23]}  dxc4 {[%clk 0:02:50]} 15. Qc2 {[%clk 0:02:20]}  Qc8 {[%clk 0:02:17]} 16. Bg5 {[%clk 0:02:13]}  Bf5 {[%clk 0:02:10]} 17. Qc1 {[%clk 0:02:09]}  Bc5 {[%clk 0:02:08]} 18. Nh4 {[%clk 0:01:55]}  Bd3 {[%clk 0:02:02]} 19. Qf4 {[%clk 0:01:46]}  h6 {[%clk 0:01:49]} 20. Bf6 {[%clk 0:01:41]}  gxf6 {[%clk 0:01:46]} 21. exf6 {[%clk 0:01:38]}  Kh7 {[%clk 0:01:43]} 22. Re7 {[%clk 0:00:36]}  Bd6 {[%clk 0:01:33]} 23. Qf3 {[%clk 0:00:36]}  Bxe7 {[%clk 0:01:33]} 24. fxe7 {[%clk 0:00:36]}  Rg8 {[%clk 0:01:33]} 25. Re1 {[%clk 0:00:23]}  Qg4 {[%clk 0:01:17]} 26. Qxf7+ {[%clk 0:00:19]}  Rg7 {[%clk 0:01:15]} 27. Qd5 {[%clk 0:00:07]}  Re8 {[%clk 0:01:08]} 28. Qc6 {[%clk 0:00:06]}  Rexe7 {[%clk 0:01:04]} 29. Rxe7 {[%clk 0:00:05]}  Qd1+ {[%clk 0:01:03]} 0-1


[Site "https://www.chess.com"]

[Event "Titled Tuesday Blitz November 30 2021"]
[White "Atakishiyev, Elmar"]
[Black "Grigorjev, Iljya"]
[WhiteFideId "13410547"]
[BlackFideId "24159565"]
[WhiteElo "2088"]
[BlackElo "2124"]
[Result "1-0"]
[Round "05"]
[TimeControl "180+1"]
[Date "2021.11.30"]
[WhiteClock "0:00:50"]
[BlackClock "0:00:18"]

1. d4 {[%clk 0:03:00]}  Nf6 {[%clk 0:03:00]} 2. c4 {[%clk 0:03:00]}  g6 {[%clk 0:03:00]} 3. Nc3 {[%clk 0:03:00]}  d5 {[%clk 0:03:01]} 4. cxd5 {[%clk 0:03:01]}  Nxd5 {[%clk 0:03:02]} 5. e4 {[%clk 0:03:01]}  Nxc3 {[%clk 0:03:02]} 6. bxc3 {[%clk 0:03:02]}  Bg7 {[%clk 0:03:03]} 7. Bc4 {[%clk 0:03:01]}  c5 {[%clk 0:03:03]} 8. Ne2 {[%clk 0:03:02]}  Nc6 {[%clk 0:03:04]} 9. Be3 {[%clk 0:03:02]}  O-O {[%clk 0:03:05]} 10. Rc1 {[%clk 0:03:02]}  b6 {[%clk 0:03:04]} 11. h4 {[%clk 0:03:01]}  h5 {[%clk 0:02:38]} 12. Qd2 {[%clk 0:02:44]}  cxd4 {[%clk 0:02:28]} 13. cxd4 {[%clk 0:02:42]}  Bb7 {[%clk 0:02:28]} 14. g4 {[%clk 0:02:35]}  Na5 {[%clk 0:02:17]} 15. Bd3 {[%clk 0:02:33]}  hxg4 {[%clk 0:01:49]} 16. h5 {[%clk 0:02:32]}  e5 {[%clk 0:01:13]} 17. d5 {[%clk 0:02:25]}  gxh5 {[%clk 0:01:02]} 18. Rxh5 {[%clk 0:02:18]}  f6 {[%clk 0:01:02]} 19. Bh6 {[%clk 0:02:17]}  Qe8 {[%clk 0:00:59]} 20. Rh4 {[%clk 0:02:10]}  Qg6 {[%clk 0:01:00]} 21. Rc7 {[%clk 0:01:54]}  Rf7 {[%clk 0:01:00]} 22. Rxf7 {[%clk 0:01:11]}  Kxf7 {[%clk 0:01:00]} 23. Ng3 {[%clk 0:01:11]}  Rh8 {[%clk 0:00:39]} 24. Nf5 {[%clk 0:01:09]}  Bxh6 {[%clk 0:00:39]} 25. Nxh6+ {[%clk 0:00:54]}  Ke8 {[%clk 0:00:40]} 26. Bb5+ {[%clk 0:00:53]}  Kf8 {[%clk 0:00:17]} 27. Qb4+ {[%clk 0:00:52]}  Kg7 {[%clk 0:00:18]} 28. Qe7+ {[%clk 0:00:50]} 1-0


[Site "https://www.chess.com"]

[Event "Titled Tuesday Blitz November 30 2021"]
[White "Azarov, Sergei"]
[Black "Siva Mahadevan"]
[WhiteFideId "13501470"]
[BlackFideId "25043153"]
[WhiteElo "2494"]
[BlackElo "2203"]
[Result "0-1"]
[Round "05"]
[TimeControl "180+1"]
[Date "2021.11.30"]
[WhiteClock "0:00:01"]
[BlackClock "0:00:27"]

1. e4 {[%clk 0:03:00]}  c5 {[%clk 0:02:59]} 2. Nf3 {[%clk 0:03:01]}  Nc6 {[%clk 0:02:59]} 3. d4 {[%clk 0:03:01]}  cxd4 {[%clk 0:03:00]} 4. Nxd4 {[%clk 0:03:01]}  Nf6 {[%clk 0:03:01]} 5. Nc3 {[%clk 0:03:01]}  d6 {[%clk 0:03:01]} 6. Bg5 {[%clk 0:03:00]}  e6 {[%clk 0:03:01]} 7. Qd2 {[%clk 0:02:59]}  a6 {[%clk 0:03:01]} 8. O-O-O {[%clk 0:02:59]}  Bd7 {[%clk 0:03:02]} 9. f4 {[%clk 0:02:58]}  b5 {[%clk 0:03:02]} 10. Bxf6 {[%clk 0:02:47]}  gxf6 {[%clk 0:03:03]} 11. Nxc6 {[%clk 0:02:33]}  Bxc6 {[%clk 0:03:04]} 12. Bd3 {[%clk 0:02:34]}  Qb6 {[%clk 0:03:04]} 13. Kb1 {[%clk 0:02:33]}  h5 {[%clk 0:02:57]} 14. f5 {[%clk 0:02:29]}  b4 {[%clk 0:02:56]} 15. Ne2 {[%clk 0:02:28]}  e5 {[%clk 0:02:56]} 16. Nc1 {[%clk 0:02:14]}  a5 {[%clk 0:02:54]} 17. Qe2 {[%clk 0:02:10]}  a4 {[%clk 0:02:54]} 18. Bc4 {[%clk 0:02:10]}  Rc8 {[%clk 0:02:51]} 19. b3 {[%clk 0:01:52]}  Rc7 {[%clk 0:02:13]} 20. g3 {[%clk 0:01:33]}  h4 {[%clk 0:02:07]} 21. g4 {[%clk 0:01:33]}  Bh6 {[%clk 0:02:07]} 22. Rhe1 {[%clk 0:01:25]}  Ke7 {[%clk 0:02:02]} 23. Rd3 {[%clk 0:01:11]}  Qc5 {[%clk 0:01:55]} 24. Red1 {[%clk 0:01:07]}  Rd8 {[%clk 0:01:36]} 25. g5 {[%clk 0:01:05]}  Bxg5 {[%clk 0:01:35]} 26. Qh5 {[%clk 0:01:05]}  Rf8 {[%clk 0:01:36]} 27. Rxd6 {[%clk 0:00:58]}  Qxd6 {[%clk 0:01:32]} 28. Rxd6 {[%clk 0:00:58]}  Kxd6 {[%clk 0:01:33]} 29. Nd3 {[%clk 0:00:56]}  Bxe4 {[%clk 0:01:32]} 30. Qd1 {[%clk 0:00:46]}  axb3 {[%clk 0:01:22]} 31. Nxb4+ {[%clk 0:00:35]}  Ke7 {[%clk 0:00:52]} 32. axb3 {[%clk 0:00:35]}  Rd8 {[%clk 0:00:45]} 33. Qe1 {[%clk 0:00:28]}  Rd4 {[%clk 0:00:44]} 34. Na6 {[%clk 0:00:19]}  Rcxc4 {[%clk 0:00:41]} 35. bxc4 {[%clk 0:00:18]}  Rxc4 {[%clk 0:00:42]} 36. Qa5 {[%clk 0:00:17]}  Bxc2+ {[%clk 0:00:40]} 37. Kb2 {[%clk 0:00:17]}  Bxf5 {[%clk 0:00:39]} 38. Nc5 {[%clk 0:00:16]}  Kf8 {[%clk 0:00:32]} 39. Qa8+ {[%clk 0:00:15]}  Kg7 {[%clk 0:00:32]} 40. Qd5 {[%clk 0:00:15]}  Rd4 {[%clk 0:00:30]} 41. Qb7 {[%clk 0:00:14]}  Rd2+ {[%clk 0:00:29]} 42. Ka3 {[%clk 0:00:14]}  Rxh2 {[%clk 0:00:29]} 43. Qe7 {[%clk 0:00:14]}  h3 {[%clk 0:00:27]} 44. Nb7 {[%clk 0:00:14]}  Bc1+ {[%clk 0:00:24]} 45. Ka4 {[%clk 0:00:13]}  Ra2+ {[%clk 0:00:24]} 46. Kb5 {[%clk 0:00:12]}  Rb2+ {[%clk 0:00:25]} 47. Kc4 {[%clk 0:00:12]}  Be6+ {[%clk 0:00:24]} 48. Kc3 {[%clk 0:00:11]}  Rb3+ {[%clk 0:00:20]} 49. Kc2 {[%clk 0:00:11]}  Ba3 {[%clk 0:00:20]} 50. Nc5 {[%clk 0:00:05]}  Bxc5 {[%clk 0:00:20]} 51. Qxc5 {[%clk 0:00:05]}  h2 {[%clk 0:00:21]} 52. Qc6 {[%clk 0:00:05]}  Rh3 {[%clk 0:00:21]} 53. Qg2+ {[%clk 0:00:05]}  Kf8 {[%clk 0:00:21]} 54. Qa8+ {[%clk 0:00:05]}  Kg7 {[%clk 0:00:22]} 55. Qg2+ {[%clk 0:00:05]}  Kh7 {[%clk 0:00:22]} 56. Qh1 {[%clk 0:00:03]}  Bd5 {[%clk 0:00:22]} 57. Qxd5 {[%clk 0:00:03]}  h1=Q {[%clk 0:00:23]} 58. Qxf7+ {[%clk 0:00:04]}  Kh6 {[%clk 0:00:23]} 59. Qxf6+ {[%clk 0:00:04]}  Kh5 {[%clk 0:00:23]} 60. Qxe5+ {[%clk 0:00:04]}  Kg4 {[%clk 0:00:24]} 61. Qe6+ {[%clk 0:00:04]}  Kf4 {[%clk 0:00:23]} 62. Qd6+ {[%clk 0:00:04]}  Kf5 {[%clk 0:00:24]} 63. Qd7+ {[%clk 0:00:04]}  Ke5 {[%clk 0:00:24]} 64. Qc7+ {[%clk 0:00:04]}  Ke6 {[%clk 0:00:23]} 65. Qc8+ {[%clk 0:00:04]}  Kd6 {[%clk 0:00:24]} 66. Qb8+ {[%clk 0:00:04]}  Kd7 {[%clk 0:00:25]} 67. Qa7+ {[%clk 0:00:04]}  Kc8 {[%clk 0:00:25]} 68. Qa6+ {[%clk 0:00:03]}  Qb7 {[%clk 0:00:25]} 69. Qe6+ {[%clk 0:00:04]}  Qd7 {[%clk 0:00:26]} 70. Qa6+ {[%clk 0:00:03]}  Kd8 {[%clk 0:00:25]} 71. Qf6+ {[%clk 0:00:03]}  Ke8 {[%clk 0:00:25]} 72. Qg6+ {[%clk 0:00:02]}  Kf8 {[%clk 0:00:24]} 73. Qf6+ {[%clk 0:00:01]}  Qf7 {[%clk 0:00:25]} 74. Qd8+ {[%clk 0:00:01]}  Kg7 {[%clk 0:00:25]} 75. Qd4+ {[%clk 0:00:02]}  Kh7 {[%clk 0:00:26]} 76. Qe4+ {[%clk 0:00:01]}  Qg6 {[%clk 0:00:26]} 77. Kc1 {[%clk 0:00:01]}  Qxe4 {[%clk 0:00:27]} 0-1


[Site "https://www.chess.com"]